[Event "Early-Titled-Tuesday-Blitz-July-09-2024"]
[Site "Chess.com"]
[Date "2024.07.09"]
[Round "6"]
[White "Shuvalov"]
[Black "Adar_07"]
[Result "0-1"]
[WhiteElo "2586"]
[BlackElo "2758"]
[TimeControl "180+1"]
[EndTime "9:08:30 PDT"]
[Termination "Adar_07 won by resignation"]

1. c4 {[%clk 0:02:58.4]} 1... Nf6 {[%clk 0:02:58.6]} 2. Nc3 {[%clk 0:02:58]}
2... e6 {[%clk 0:02:58.7]} 3. d4 {[%clk 0:02:57]} 3... c5 {[%clk 0:02:59.2]} 4.
d5 {[%clk 0:02:56.5]} 4... exd5 {[%clk 0:03:00.1]} 5. cxd5 {[%clk 0:02:57.1]}
5... g6 {[%clk 0:03:01]} 6. h3 {[%clk 0:02:55]} 6... Bg7 {[%clk 0:03:00.9]} 7.
Bf4 {[%clk 0:02:55.5]} 7... O-O {[%clk 0:03:00.5]} 8. e3 {[%clk 0:02:55.9]} 8...
Re8 {[%clk 0:02:57.2]} 9. Nf3 {[%clk 0:02:55.8]} 9... Qa5 {[%clk 0:02:49.4]} 10.
Nd2 {[%clk 0:02:54.4]} 10... b5 {[%clk 0:02:42.2]} 11. a3 {[%clk 0:02:38.6]}
11... Nh5 {[%clk 0:02:16.3]} 12. Bh2 {[%clk 0:02:31.1]} 12... b4 {[%clk
0:02:08.4]} 13. Nc4 {[%clk 0:01:57.7]} 13... Qd8 {[%clk 0:02:02.8]} 14. Nb5
{[%clk 0:01:56.3]} 14... Na6 {[%clk 0:01:41.9]} 15. Be2 {[%clk 0:01:47.5]} 15...
Nf6 {[%clk 0:01:37.4]} 16. O-O {[%clk 0:01:45.1]} 16... Ne4 {[%clk 0:01:31.6]}
17. Nbd6 {[%clk 0:01:33.5]} 17... Nxd6 {[%clk 0:01:22.2]} 18. Nxd6 {[%clk
0:01:34.4]} 18... Bxb2 {[%clk 0:01:21.7]} 19. axb4 {[%clk 0:01:10.8]} 19... Bxa1
{[%clk 0:01:20.7]} 20. Qxa1 {[%clk 0:01:11.7]} 20... Nxb4 {[%clk 0:01:20.1]} 21.
Nxe8 {[%clk 0:01:02.8]} 21... Qxe8 {[%clk 0:01:20.3]} 22. Bc4 {[%clk 0:01:01.3]}
22... a5 {[%clk 0:01:18.1]} 23. Bd6 {[%clk 0:00:59.4]} 23... Qe4 {[%clk
0:01:12.8]} 24. Rc1 {[%clk 0:00:30.4]} 24... Bb7 {[%clk 0:00:52.9]} 25. Bxc5
{[%clk 0:00:27.4]} 25... Rc8 {[%clk 0:00:51.1]} 26. Qxa5 {[%clk 0:00:23]} 26...
Nd3 {[%clk 0:00:41.6]} 27. Bxd3 {[%clk 0:00:20.6]} 27... Qxd3 {[%clk 0:00:42.5]}
28. f3 {[%clk 0:00:14.9]} 28... Bxd5 {[%clk 0:00:41.3]} 29. e4 {[%clk
0:00:14.6]} 29... Be6 {[%clk 0:00:37.8]} 30. Qa3 {[%clk 0:00:14.6]} 30... Qe2
{[%clk 0:00:30]} 31. Be3 {[%clk 0:00:13.2]} 31... Rxc1+ {[%clk 0:00:26.2]} 32.
Qxc1 {[%clk 0:00:14.1]} 32... h5 {[%clk 0:00:26]} 33. Bd4 {[%clk 0:00:12.1]}
33... Kh7 {[%clk 0:00:24.8]} 34. Qc8 {[%clk 0:00:11.8]} 34... Qd1+ {[%clk
0:00:24.4]} 35. Kh2 {[%clk 0:00:10.8]} 35... Qxd4 {[%clk 0:00:25.3]} 0-1

[Event "Early-Titled-Tuesday-Blitz-July-09-2024"]
[Site "Chess.com"]
[Date "2024.07.09"]
[Round "6"]
[White "zacachess"]
[Black "MrMatesM"]
[Result "1/2-1/2"]
[WhiteElo "2482"]
[BlackElo "2696"]
[TimeControl "180+1"]
[EndTime "9:08:30 PDT"]
[Termination "Game drawn by repetition"]

1. e4 {[%clk 0:02:59.1]} 1... c5 {[%clk 0:03:00.3]} 2. Nf3 {[%clk 0:02:59]} 2...
d6 {[%clk 0:03:00.7]} 3. d4 {[%clk 0:02:58.2]} 3... cxd4 {[%clk 0:03:01.6]} 4.
Nxd4 {[%clk 0:02:58.9]} 4... Nf6 {[%clk 0:03:02.3]} 5. f3 {[%clk 0:02:58.9]}
5... e5 {[%clk 0:03:01.8]} 6. Nb3 {[%clk 0:02:58.4]} 6... a5 {[%clk 0:03:02.4]}
7. c4 {[%clk 0:02:49.9]} 7... a4 {[%clk 0:03:02.2]} 8. N3d2 {[%clk 0:02:47.9]}
8... Nc6 {[%clk 0:02:59.1]} 9. Nc3 {[%clk 0:02:45.3]} 9... Be7 {[%clk
0:02:58.7]} 10. Bd3 {[%clk 0:02:41.6]} 10... Qa5 {[%clk 0:02:58.6]} 11. Ndb1
{[%clk 0:02:35.3]} 11... O-O {[%clk 0:02:54.7]} 12. Na3 {[%clk 0:02:32.5]} 12...
Be6 {[%clk 0:02:54.3]} 13. O-O {[%clk 0:02:31.5]} 13... Nd7 {[%clk 0:02:54.2]}
14. Be3 {[%clk 0:02:25.3]} 14... Nc5 {[%clk 0:02:52.5]} 15. Be2 {[%clk 0:02:22]}
15... Rfd8 {[%clk 0:02:49.7]} 16. Qd2 {[%clk 0:02:19.3]} 16... Nd4 {[%clk
0:02:41.2]} 17. Bxd4 {[%clk 0:02:13.5]} 17... exd4 {[%clk 0:02:41.1]} 18. Qxd4
{[%clk 0:02:13.9]} 18... Bf6 {[%clk 0:02:41.6]} 19. Qd2 {[%clk 0:02:13.5]} 19...
Rac8 {[%clk 0:02:28.5]} 20. Kh1 {[%clk 0:02:11.4]} 20... Qb4 {[%clk 0:02:27.2]}
21. Rfd1 {[%clk 0:01:54.6]} 21... Bxc3 {[%clk 0:01:43.3]} 22. Qxc3 {[%clk
0:01:54.2]} 22... Qxc3 {[%clk 0:01:43.8]} 23. bxc3 {[%clk 0:01:55.1]} 23... Kf8
{[%clk 0:01:44]} 24. Rab1 {[%clk 0:01:51.9]} 24... Ke7 {[%clk 0:01:43.6]} 25.
Kg1 {[%clk 0:01:50]} 25... g5 {[%clk 0:01:43.3]} 26. Kf2 {[%clk 0:01:48.4]}
26... Rc6 {[%clk 0:01:42]} 27. Ke3 {[%clk 0:01:46]} 27... h5 {[%clk 0:01:37.9]}
28. g3 {[%clk 0:01:29]} 28... Rg8 {[%clk 0:01:35.5]} 29. Nb5 {[%clk 0:01:21.7]}
29... Rb6 {[%clk 0:01:19.9]} 30. Nd4 {[%clk 0:01:14.3]} 30... Rxb1 {[%clk
0:01:20]} 31. Rxb1 {[%clk 0:01:15.2]} 31... f6 {[%clk 0:01:17.2]} 32. Rb6 {[%clk
0:01:12.7]} 32... Bd7 {[%clk 0:01:10.3]} 33. Nc2 {[%clk 0:01:05.2]} 33... h4
{[%clk 0:01:04.9]} 34. g4 {[%clk 0:01:02.8]} 34... Rc8 {[%clk 0:00:58.5]} 35.
Nb4 {[%clk 0:00:58.7]} 35... Bc6 {[%clk 0:00:58.5]} 36. Nd3 {[%clk 0:00:53.8]}
36... Ne6 {[%clk 0:00:56.7]} 37. Rb4 {[%clk 0:00:47.3]} 37... Ra8 {[%clk
0:00:55.4]} 38. a3 {[%clk 0:00:46.8]} 38... Ra5 {[%clk 0:00:55.3]} 39. Bd1
{[%clk 0:00:43.1]} 39... Kd7 {[%clk 0:00:51.3]} 40. Nb2 {[%clk 0:00:42.6]} 40...
Nc5 {[%clk 0:00:50.8]} 41. Nd3 {[%clk 0:00:42.5]} 41... Ne6 {[%clk 0:00:50.2]}
42. Nb2 {[%clk 0:00:42.4]} 42... Nc5 {[%clk 0:00:40.6]} 43. Nd3 {[%clk
0:00:42.4]} 43... Nxd3 {[%clk 0:00:36.6]} 44. Kxd3 {[%clk 0:00:43.3]} 44... Ke6
{[%clk 0:00:37.2]} 45. Kd4 {[%clk 0:00:41.1]} 45... Ra6 {[%clk 0:00:33.1]} 46.
Rb2 {[%clk 0:00:39]} 46... Ra5 {[%clk 0:00:33.6]} 47. Rb4 {[%clk 0:00:39.2]}
47... Ra6 {[%clk 0:00:33.8]} 48. Rb2 {[%clk 0:00:39.7]} 48... Ra5 {[%clk
0:00:32.5]} 49. Rb4 {[%clk 0:00:40]} 1/2-1/2

[Event "Early-Titled-Tuesday-Blitz-July-09-2024"]
[Site "Chess.com"]
[Date "2024.07.09"]
[Round "6"]
[White "Alex_Banzea"]
[Black "chess_peak"]
[Result "1/2-1/2"]
[WhiteElo "2699"]
[BlackElo "2542"]
[TimeControl "180+1"]
[EndTime "9:08:31 PDT"]
[Termination "Game drawn by repetition"]

1. d4 {[%clk 0:03:00.9]} 1... Nf6 {[%clk 0:02:59.6]} 2. Nc3 {[%clk 0:03:01.5]}
2... d5 {[%clk 0:02:59.2]} 3. Bf4 {[%clk 0:03:01.9]} 3... c5 {[%clk 0:02:57.6]}
4. e3 {[%clk 0:03:02.1]} 4... cxd4 {[%clk 0:02:57.2]} 5. exd4 {[%clk 0:03:03]}
5... a6 {[%clk 0:02:57.4]} 6. Bd3 {[%clk 0:03:03.6]} 6... Nc6 {[%clk 0:02:51.1]}
7. Nge2 {[%clk 0:03:04.1]} 7... Bg4 {[%clk 0:02:45.1]} 8. f3 {[%clk 0:03:04.6]}
8... Bh5 {[%clk 0:02:45.2]} 9. g4 {[%clk 0:03:05.3]} 9... Bg6 {[%clk 0:02:45.4]}
10. h4 {[%clk 0:03:06]} 10... e6 {[%clk 0:02:31]} 11. h5 {[%clk 0:03:06.6]}
11... Bxd3 {[%clk 0:02:30.9]} 12. Qxd3 {[%clk 0:03:07.5]} 12... h6 {[%clk
0:02:30.9]} 13. O-O-O {[%clk 0:03:08.1]} 13... Bd6 {[%clk 0:02:24.5]} 14. Kb1
{[%clk 0:03:08.2]} 14... Bxf4 {[%clk 0:02:09.9]} 15. Nxf4 {[%clk 0:03:08.1]}
15... Qd6 {[%clk 0:02:09.4]} 16. Qe3 {[%clk 0:03:08.5]} 16... O-O-O {[%clk
0:02:05]} 17. Nd3 {[%clk 0:03:09.2]} 17... Kb8 {[%clk 0:01:57.9]} 18. Na4 {[%clk
0:03:09.6]} 18... Qc7 {[%clk 0:01:41.6]} 19. Nac5 {[%clk 0:02:36.9]} 19... Nd7
{[%clk 0:01:39.5]} 20. Nxd7+ {[%clk 0:02:36.4]} 20... Rxd7 {[%clk 0:01:35.6]}
21. Nc5 {[%clk 0:02:37.3]} 21... Rdd8 {[%clk 0:01:34.7]} 22. Rhe1 {[%clk
0:01:57.2]} 22... Ne7 {[%clk 0:01:10]} 23. Qe5 {[%clk 0:01:45.4]} 23... Qxe5
{[%clk 0:01:05.5]} 24. Rxe5 {[%clk 0:01:46.3]} 24... Nc6 {[%clk 0:00:52.3]} 25.
Ree1 {[%clk 0:01:45.9]} 25... b6 {[%clk 0:00:48.5]} 26. Na4 {[%clk 0:01:21.7]}
26... Kc7 {[%clk 0:00:48.2]} 27. Nc3 {[%clk 0:01:21.6]} 27... Rhe8 {[%clk
0:00:41.1]} 28. Ne2 {[%clk 0:01:21.9]} 28... Ne7 {[%clk 0:00:38.9]} 29. Nf4
{[%clk 0:01:21.3]} 29... Nc8 {[%clk 0:00:37.8]} 30. Nd3 {[%clk 0:01:20.8]} 30...
Nd6 {[%clk 0:00:28]} 31. Ne5 {[%clk 0:01:21.2]} 31... Re7 {[%clk 0:00:25.1]} 32.
Re2 {[%clk 0:01:16.2]} 32... Nc4 {[%clk 0:00:23.2]} 33. Rde1 {[%clk 0:01:12.4]}
33... Nxe5 {[%clk 0:00:22.9]} 34. Rxe5 {[%clk 0:01:13.3]} 34... Kd6 {[%clk
0:00:20.7]} 35. f4 {[%clk 0:01:10.9]} 35... f6 {[%clk 0:00:19.9]} 36. R5e3
{[%clk 0:01:10.8]} 36... Rde8 {[%clk 0:00:20.5]} 37. Ra3 {[%clk 0:00:58.9]}
37... a5 {[%clk 0:00:19.4]} 38. Rb3 {[%clk 0:00:58.6]} 38... Kc6 {[%clk
0:00:19.6]} 39. Rbe3 {[%clk 0:00:45]} 39... Kd6 {[%clk 0:00:19.5]} 40. Rb3
{[%clk 0:00:22.7]} 40... Kc6 {[%clk 0:00:19.6]} 41. Rbe3 {[%clk 0:00:23.4]}
41... Kd6 {[%clk 0:00:20.1]} 42. Rb3 {[%clk 0:00:24.1]} 1/2-1/2

[Event "Early-Titled-Tuesday-Blitz-July-09-2024"]
[Site "Chess.com"]
[Date "2024.07.09"]
[Round "6"]
[White "KhBegmuratov"]
[Black "vi_pranav"]
[Result "1-0"]
[WhiteElo "2916"]
[BlackElo "3011"]
[TimeControl "180+1"]
[EndTime "9:08:33 PDT"]
[Termination "KhBegmuratov won by resignation"]

1. e4 {[%clk 0:03:00.9]} 1... e5 {[%clk 0:02:59.9]} 2. Nf3 {[%clk 0:03:00.9]}
2... Nc6 {[%clk 0:03:00.5]} 3. Bc4 {[%clk 0:03:01.3]} 3... Nf6 {[%clk
0:03:00.4]} 4. d3 {[%clk 0:03:01.8]} 4... h6 {[%clk 0:03:00.6]} 5. O-O {[%clk
0:03:01.2]} 5... d6 {[%clk 0:03:01.1]} 6. Re1 {[%clk 0:02:58.2]} 6... g5 {[%clk
0:03:00.4]} 7. Nc3 {[%clk 0:02:47.7]} 7... Bg7 {[%clk 0:02:59.4]} 8. a4 {[%clk
0:02:47.6]} 8... O-O {[%clk 0:02:49.2]} 9. Nd5 {[%clk 0:02:47.6]} 9... Be6
{[%clk 0:02:45.9]} 10. Nxf6+ {[%clk 0:02:47.4]} 10... Qxf6 {[%clk 0:02:46.8]}
11. Be3 {[%clk 0:02:46.1]} 11... Ne7 {[%clk 0:02:39]} 12. Nd2 {[%clk 0:02:35.8]}
12... d5 {[%clk 0:02:26]} 13. exd5 {[%clk 0:02:35.6]} 13... Nxd5 {[%clk
0:02:26.9]} 14. Bc5 {[%clk 0:02:32]} 14... Rfe8 {[%clk 0:02:23.1]} 15. Qf3
{[%clk 0:02:22.9]} 15... Qxf3 {[%clk 0:02:17.3]} 16. Nxf3 {[%clk 0:02:23.8]}
16... b6 {[%clk 0:01:28]} 17. Ba3 {[%clk 0:02:21]} 17... Nf4 {[%clk 0:01:24.5]}
18. Bb5 {[%clk 0:02:10.4]} 18... Bd5 {[%clk 0:01:10.7]} 19. Bxe8 {[%clk
0:02:09.8]} 19... Rxe8 {[%clk 0:01:11.6]} 20. Bb4 {[%clk 0:01:58.9]} 20... Nxg2
{[%clk 0:00:59.7]} 21. Kxg2 {[%clk 0:01:59.8]} 21... g4 {[%clk 0:01:00.1]} 22.
Kg1 {[%clk 0:02:00.6]} 22... gxf3 {[%clk 0:00:53.1]} 23. Kh1 {[%clk 0:01:56.3]}
23... Kh7 {[%clk 0:00:52.4]} 24. Bc3 {[%clk 0:01:55.5]} 24... f6 {[%clk
0:00:48.7]} 25. a5 {[%clk 0:01:55.4]} 25... Bf8 {[%clk 0:00:45.5]} 26. axb6
{[%clk 0:01:55.1]} 26... axb6 {[%clk 0:00:46.4]} 27. Ra7 {[%clk 0:01:54.7]}
27... Bd6 {[%clk 0:00:46.8]} 28. Bd2 {[%clk 0:01:50.9]} 28... Be6 {[%clk
0:00:43.4]} 29. Ra4 {[%clk 0:01:31.2]} 29... Bh3 {[%clk 0:00:33]} 30. Rh4 {[%clk
0:01:19.5]} 30... Bg2+ {[%clk 0:00:32.7]} 31. Kg1 {[%clk 0:01:20.2]} 31... Bf8
{[%clk 0:00:33.2]} 32. Ra1 {[%clk 0:01:09.2]} 32... f5 {[%clk 0:00:29.1]} 33.
Ra7 {[%clk 0:01:06.9]} 33... Re7 {[%clk 0:00:28.6]} 34. Rc4 {[%clk 0:01:01.1]}
34... c5 {[%clk 0:00:20.2]} 35. Rxe7+ {[%clk 0:01:01]} 35... Bxe7 {[%clk
0:00:21.1]} 36. Ra4 {[%clk 0:01:01.9]} 36... Kg6 {[%clk 0:00:10.6]} 37. Ra6
{[%clk 0:01:02.2]} 37... Bd8 {[%clk 0:00:10.5]} 38. Ba5 {[%clk 0:01:02.9]} 38...
Bg5 {[%clk 0:00:04.4]} 39. Bxb6 {[%clk 0:01:02.4]} 39... e4 {[%clk 0:00:03.6]}
40. Bxc5+ {[%clk 0:00:57.6]} 40... Kh5 {[%clk 0:00:03.5]} 41. dxe4 {[%clk
0:00:58.4]} 41... fxe4 {[%clk 0:00:03.5]} 42. Be3 {[%clk 0:00:58.6]} 42... Bxe3
{[%clk 0:00:03.5]} 43. fxe3 {[%clk 0:00:59.5]} 43... Kg4 {[%clk 0:00:03.6]} 44.
Rxh6 {[%clk 0:00:58.9]} 1-0

[Event "Early-Titled-Tuesday-Blitz-July-09-2024"]
[Site "Chess.com"]
[Date "2024.07.09"]
[Round "6"]
[White "DawidCzerw"]
[Black "JJDAREK"]
[Result "1-0"]
[WhiteElo "2496"]
[BlackElo "2350"]
[TimeControl "180+1"]
[EndTime "9:08:34 PDT"]
[Termination "DawidCzerw won on time"]

1. e4 {[%clk 0:03:00.9]} 1... d6 {[%clk 0:02:59.3]} 2. Nc3 {[%clk 0:03:00.5]}
2... g6 {[%clk 0:02:57.6]} 3. d4 {[%clk 0:03:00.6]} 3... Bg7 {[%clk 0:02:57.1]}
4. f4 {[%clk 0:03:00.6]} 4... a6 {[%clk 0:02:53.6]} 5. a4 {[%clk 0:03:00.3]}
5... Nc6 {[%clk 0:02:48.4]} 6. Nf3 {[%clk 0:02:59.8]} 6... Bg4 {[%clk 0:02:47]}
7. d5 {[%clk 0:02:58.1]} 7... Nd4 {[%clk 0:02:44.9]} 8. Be2 {[%clk 0:02:56.6]}
8... Bxf3 {[%clk 0:02:36.1]} 9. Bxf3 {[%clk 0:02:57.5]} 9... b5 {[%clk
0:02:21.8]} 10. O-O {[%clk 0:02:52]} 10... b4 {[%clk 0:02:11.5]} 11. Ne2 {[%clk
0:02:49.8]} 11... Nxf3+ {[%clk 0:02:10.5]} 12. Rxf3 {[%clk 0:02:49]} 12... a5
{[%clk 0:02:00.7]} 13. Nd4 {[%clk 0:02:48.2]} 13... Nf6 {[%clk 0:01:45.1]} 14.
Nc6 {[%clk 0:02:30.9]} 14... Qd7 {[%clk 0:01:45.1]} 15. Qd3 {[%clk 0:02:29.1]}
15... O-O {[%clk 0:01:37.7]} 16. c4 {[%clk 0:02:28.6]} 16... bxc3 {[%clk
0:01:26.4]} 17. bxc3 {[%clk 0:02:27.3]} 17... e6 {[%clk 0:01:25]} 18. Rb1 {[%clk
0:02:14.1]} 18... exd5 {[%clk 0:01:22.6]} 19. exd5 {[%clk 0:02:15]} 19... Rfe8
{[%clk 0:01:18.5]} 20. Bd2 {[%clk 0:02:03.4]} 20... Ne4 {[%clk 0:01:12.4]} 21.
c4 {[%clk 0:01:50.3]} 21... Nxd2 {[%clk 0:01:06.7]} 22. Qxd2 {[%clk 0:01:48.3]}
22... Qf5 {[%clk 0:01:05.5]} 23. Rb7 {[%clk 0:01:23.1]} 23... Qd7 {[%clk
0:00:48]} 24. h3 {[%clk 0:01:03.4]} 24... h5 {[%clk 0:00:47.8]} 25. f5 {[%clk
0:01:02.7]} 25... Kh7 {[%clk 0:00:41.6]} 26. Rb1 {[%clk 0:00:39]} 26... Re4
{[%clk 0:00:31.7]} 27. Qd3 {[%clk 0:00:31.2]} 27... Rae8 {[%clk 0:00:28.8]} 28.
Rbf1 {[%clk 0:00:30.8]} 28... Re1 {[%clk 0:00:12.8]} 29. Kh2 {[%clk 0:00:20.6]}
29... Rxf1 {[%clk 0:00:12.4]} 30. Rxf1 {[%clk 0:00:21.5]} 30... Be5+ {[%clk
0:00:04]} 31. Kh1 {[%clk 0:00:18.2]} 1-0

[Event "Early-Titled-Tuesday-Blitz-July-09-2024"]
[Site "Chess.com"]
[Date "2024.07.09"]
[Round "6"]
[White "DarkPassenger007"]
[Black "GM_Huschenbeth"]
[Result "0-1"]
[WhiteElo "2351"]
[BlackElo "2519"]
[TimeControl "180+1"]
[EndTime "9:08:35 PDT"]
[Termination "GM_Huschenbeth won on time"]

1. e4 {[%clk 0:03:00.9]} 1... c5 {[%clk 0:02:59.5]} 2. Nf3 {[%clk 0:03:00.5]}
2... d6 {[%clk 0:02:59.5]} 3. d4 {[%clk 0:03:00.5]} 3... cxd4 {[%clk 0:03:00.4]}
4. Nxd4 {[%clk 0:03:01.1]} 4... Nf6 {[%clk 0:03:01.1]} 5. Nc3 {[%clk 0:03:00.7]}
5... a6 {[%clk 0:03:01.8]} 6. h3 {[%clk 0:02:58.1]} 6... g6 {[%clk 0:02:59.9]}
7. Be3 {[%clk 0:02:51.7]} 7... Bg7 {[%clk 0:02:59.9]} 8. Qd2 {[%clk 0:02:51.5]}
8... Nc6 {[%clk 0:02:59.8]} 9. O-O-O {[%clk 0:02:50.8]} 9... Bd7 {[%clk
0:02:58.2]} 10. g4 {[%clk 0:02:46]} 10... Rc8 {[%clk 0:02:57.5]} 11. Kb1 {[%clk
0:02:44.9]} 11... O-O {[%clk 0:02:51]} 12. f3 {[%clk 0:02:38.2]} 12... Ne5
{[%clk 0:02:42.6]} 13. h4 {[%clk 0:02:34.8]} 13... Nc4 {[%clk 0:02:41.2]} 14.
Bxc4 {[%clk 0:02:34.5]} 14... Rxc4 {[%clk 0:02:42.1]} 15. h5 {[%clk 0:02:33.8]}
15... b5 {[%clk 0:01:36.3]} 16. hxg6 {[%clk 0:02:32.1]} 16... fxg6 {[%clk
0:01:36.6]} 17. Bh6 {[%clk 0:02:29.6]} 17... b4 {[%clk 0:01:27.6]} 18. Nce2
{[%clk 0:01:36.7]} 18... Rf7 {[%clk 0:00:55.5]} 19. Bxg7 {[%clk 0:01:22.2]}
19... Rxg7 {[%clk 0:00:55.8]} 20. Nf4 {[%clk 0:01:09.2]} 20... Qc8 {[%clk
0:00:53.3]} 21. Nd5 {[%clk 0:01:04]} 21... Nxd5 {[%clk 0:00:51.1]} 22. exd5
{[%clk 0:01:04.9]} 22... a5 {[%clk 0:00:46.8]} 23. Rde1 {[%clk 0:00:52.2]} 23...
a4 {[%clk 0:00:46.8]} 24. b3 {[%clk 0:00:30.7]} 24... Rc3 {[%clk 0:00:42]} 25.
Qg5 {[%clk 0:00:07.3]} 25... Qf8 {[%clk 0:00:29.1]} 26. Ne6 {[%clk 0:00:04.9]}
26... Bxe6 {[%clk 0:00:28.9]} 27. Rxe6 {[%clk 0:00:04.1]} 27... a3 {[%clk
0:00:20.2]} 28. f4 {[%clk 0:00:03]} 28... Rf3 {[%clk 0:00:19.9]} 29. Rhe1 {[%clk
0:00:01]} 29... Rxf4 {[%clk 0:00:19.1]} 30. Rxe7 {[%clk 0:00:01.4]} 30... Rxe7
{[%clk 0:00:19]} 0-1

[Event "Early-Titled-Tuesday-Blitz-July-09-2024"]
[Site "Chess.com"]
[Date "2024.07.09"]
[Round "6"]
[White "Hikaru"]
[Black "Rakhmanov_Aleksandr"]
[Result "1-0"]
[WhiteElo "3220"]
[BlackElo "2860"]
[TimeControl "180+1"]
[EndTime "9:08:36 PDT"]
[Termination "Hikaru won on time"]

1. Nf3 {[%clk 0:02:46.7]} 1... Nf6 {[%clk 0:02:57.3]} 2. b3 {[%clk 0:02:46.5]}
2... g6 {[%clk 0:02:56.1]} 3. Bb2 {[%clk 0:02:46.7]} 3... Bg7 {[%clk 0:02:56.8]}
4. d4 {[%clk 0:02:47.6]} 4... d5 {[%clk 0:02:55.7]} 5. e3 {[%clk 0:02:47.7]}
5... c6 {[%clk 0:02:55.8]} 6. c4 {[%clk 0:02:48]} 6... Bg4 {[%clk 0:02:55.7]} 7.
Nbd2 {[%clk 0:02:47.7]} 7... O-O {[%clk 0:02:55.2]} 8. Bd3 {[%clk 0:02:47.9]}
8... e6 {[%clk 0:02:54.2]} 9. h3 {[%clk 0:02:47.9]} 9... Bxf3 {[%clk 0:02:54.3]}
10. Nxf3 {[%clk 0:02:47.3]} 10... Nbd7 {[%clk 0:02:50.7]} 11. Qc2 {[%clk
0:02:47.2]} 11... Re8 {[%clk 0:02:50.4]} 12. O-O {[%clk 0:02:47.1]} 12... Qe7
{[%clk 0:02:49.8]} 13. Rfd1 {[%clk 0:02:46.3]} 13... a6 {[%clk 0:02:49.7]} 14.
a3 {[%clk 0:02:42.2]} 14... Rac8 {[%clk 0:02:49]} 15. b4 {[%clk 0:02:41.8]}
15... Nh5 {[%clk 0:02:31.3]} 16. Qb3 {[%clk 0:02:25.2]} 16... f5 {[%clk
0:02:19.8]} 17. a4 {[%clk 0:02:24.3]} 17... Nhf6 {[%clk 0:02:17]} 18. b5 {[%clk
0:02:19.7]} 18... axb5 {[%clk 0:02:16.4]} 19. axb5 {[%clk 0:02:19.8]} 19... Ne4
{[%clk 0:02:04]} 20. Ra7 {[%clk 0:02:19.3]} 20... Rb8 {[%clk 0:01:50.5]} 21. Qa2
{[%clk 0:01:39.8]} 21... Qd8 {[%clk 0:01:11.8]} 22. Rc1 {[%clk 0:01:36.3]} 22...
Re7 {[%clk 0:01:01.2]} 23. Ba3 {[%clk 0:01:29.1]} 23... Rf7 {[%clk 0:00:58.1]}
24. Bb4 {[%clk 0:01:29.2]} 24... g5 {[%clk 0:00:51.1]} 25. Ba5 {[%clk
0:01:23.9]} 25... Qf6 {[%clk 0:00:11]} 26. Bc7 {[%clk 0:01:22.5]} 26... Rc8
{[%clk 0:00:11.3]} 27. Rxb7 {[%clk 0:01:19.5]} 27... g4 {[%clk 0:00:03]} 28.
hxg4 {[%clk 0:00:37.4]} 28... fxg4 {[%clk 0:00:03.9]} 29. Bxe4 {[%clk 0:00:38]}
29... dxe4 {[%clk 0:00:03.2]} 30. Ne5 {[%clk 0:00:38.5]} 30... Nxe5 {[%clk
0:00:01.9]} 31. Bxe5 {[%clk 0:00:39.4]} 31... Qh4 {[%clk 0:00:01.2]} 32. Rxf7
{[%clk 0:00:39.2]} 32... Bxe5 {[%clk 0:00:01.1]} 33. dxe5 {[%clk 0:00:39.1]}
33... Kxf7 {[%clk 0:00:01.7]} 34. g3 {[%clk 0:00:37.8]} 34... Qe7 {[%clk
0:00:01.3]} 35. b6 {[%clk 0:00:37]} 35... Qc5 {[%clk 0:00:01.1]} 36. Qa7+ {[%clk
0:00:35.8]} 36... Kg6 {[%clk 0:00:01.6]} 37. b7 {[%clk 0:00:34.7]} 37... Qxa7
{[%clk 0:00:01.2]} 38. bxc8=Q {[%clk 0:00:34.6]} 1-0

[Event "Early-Titled-Tuesday-Blitz-July-09-2024"]
[Site "Chess.com"]
[Date "2024.07.09"]
[Round "6"]
[White "Goryachkina"]
[Black "IMGC"]
[Result "1-0"]
[WhiteElo "2676"]
[BlackElo "2461"]
[TimeControl "180+1"]
[EndTime "9:08:36 PDT"]
[Termination "Goryachkina won by resignation"]

1. e4 {[%clk 0:03:00.9]} 1... c5 {[%clk 0:02:58.5]} 2. Nf3 {[%clk 0:03:00.7]}
2... e6 {[%clk 0:02:59.1]} 3. d4 {[%clk 0:02:59.3]} 3... cxd4 {[%clk 0:03:00]}
4. Nxd4 {[%clk 0:02:59.6]} 4... Nf6 {[%clk 0:03:00.1]} 5. Nc3 {[%clk 0:02:59]}
5... d6 {[%clk 0:03:00.5]} 6. g4 {[%clk 0:02:55.6]} 6... h6 {[%clk 0:03:00.7]}
7. h4 {[%clk 0:02:52.1]} 7... Nc6 {[%clk 0:03:01.2]} 8. Rg1 {[%clk 0:02:37.6]}
8... h5 {[%clk 0:03:00.5]} 9. g5 {[%clk 0:02:33.1]} 9... Ng4 {[%clk 0:03:00]}
10. Be2 {[%clk 0:02:10.6]} 10... Qb6 {[%clk 0:02:59.3]} 11. Bxg4 {[%clk
0:02:06.4]} 11... hxg4 {[%clk 0:02:59.7]} 12. Nxc6 {[%clk 0:02:04.9]} 12... bxc6
{[%clk 0:02:58.8]} 13. Qxg4 {[%clk 0:02:03.4]} 13... g6 {[%clk 0:02:59.3]} 14.
e5 {[%clk 0:01:49.8]} 14... d5 {[%clk 0:02:52.2]} 15. Na4 {[%clk 0:01:46.3]}
15... Qa5+ {[%clk 0:02:23.3]} 16. Bd2 {[%clk 0:01:44.9]} 16... Qc7 {[%clk
0:02:23.1]} 17. O-O-O {[%clk 0:01:43.2]} 17... Rb8 {[%clk 0:02:20.9]} 18. h5
{[%clk 0:01:17.4]} 18... Rxh5 {[%clk 0:02:18.2]} 19. Rh1 {[%clk 0:01:17.4]}
19... Rxh1 {[%clk 0:01:33.6]} 20. Rxh1 {[%clk 0:01:18.3]} 20... Qxe5 {[%clk
0:01:18.1]} 21. Bc3 {[%clk 0:01:08.9]} 21... d4 {[%clk 0:00:45.2]} 22. Qxd4
{[%clk 0:00:36.7]} 22... Qxd4 {[%clk 0:00:43.5]} 23. Bxd4 {[%clk 0:00:37]} 23...
Rb4 {[%clk 0:00:43.8]} 24. Bc5 {[%clk 0:00:37.3]} 24... Rxa4 {[%clk 0:00:37.4]}
25. Rh8 {[%clk 0:00:37.1]} 25... Rf4 {[%clk 0:00:31.6]} 26. Rxf8+ {[%clk
0:00:36.8]} 26... Kd7 {[%clk 0:00:31.8]} 27. Bxa7 {[%clk 0:00:37]} 27... Ba6
{[%clk 0:00:28.2]} 28. Be3 {[%clk 0:00:35.5]} 28... Rf5 {[%clk 0:00:26.7]} 29.
a4 {[%clk 0:00:34.9]} 29... Ke7 {[%clk 0:00:22.7]} 30. Ra8 {[%clk 0:00:34]}
30... Bf1 {[%clk 0:00:20.8]} 31. a5 {[%clk 0:00:32.4]} 31... Kd7 {[%clk
0:00:16.7]} 32. b4 {[%clk 0:00:31.4]} 32... Rb5 {[%clk 0:00:15.6]} 33. c3 {[%clk
0:00:30.4]} 33... Rd5 {[%clk 0:00:14.2]} 34. a6 {[%clk 0:00:27.3]} 34... Be2
{[%clk 0:00:13.6]} 35. a7 {[%clk 0:00:26.2]} 35... Rd1+ {[%clk 0:00:14.5]} 36.
Kc2 {[%clk 0:00:26.3]} 36... Ra1 {[%clk 0:00:14.6]} 37. Rf8 {[%clk 0:00:26.3]}
37... Bd1+ {[%clk 0:00:11.9]} 38. Kb2 {[%clk 0:00:25.6]} 1-0